fUSD/lending_fUSD_20260605
["ID","MTS","AMOUNT","RATE_DAILY","PERIOD"]
[424141873,1780609833000,-500.0,0.000151,3]
[424141876,1780609833000,-2000.0,0.00015161,2]
[424141885,1780609833000,-260.95,0.00015581,2]
[424141878,1780609833000,-1394.65,0.00015168,2]
[424141881,1780609833000,-260.95,0.00015201,2]
[424141883,1780609833000,-345.62,0.00015315,2]
[424141884,1780609833000,-166.66,0.00015383,2]
[424141882,1780609833000,-454.01,0.00015265,2]
[424141886,1780609833000,-2351.0,0.00015596,2]
[424141888,1780609833000,-500.0,0.00015896,2]
[424141887,1780609833000,-166.66,0.00015688,2]
[424141835,1780609833000,-1507.87029,0.00014178,2]
[424141877,1780609833000,-275.77,0.00015165,2]
[424141862,1780609833000,-742.78,0.00014999,2]
[424141879,1780609833000,-8967.03,0.00015193,2]
[424141864,1780609833000,-742.78,0.00014999,2]
[424141840,1780609833000,-412.6744678,0.00014181,2]
[424141865,1780609833000,-360.0,0.00015,2]
[424141845,1780609833000,-280.72,0.00014324,2]
[424141842,1780609833000,-1040.04,0.00014245,2]
[424141841,1780609833000,-1081.59524831,0.00014245,2]
[424141843,1780609833000,-1502.52475169,0.00014245,2]
[424141844,1780609833000,-500.73953316,0.00014324,2]
[424141846,1780609833000,-819.1793169,0.00014324,2]
[424141848,1780609833000,-161.36907492,0.00014324,2]
[424141849,1780609833000,-150.0,0.00014338,2]
[424141854,1780609833000,-610.44814184,0.00014489,2]
[424141847,1780609833000,-303.85207502,0.00014324,2]
[424141857,1780609833000,-1848.82521999,0.00014674,2]
[424141853,1780609833000,-56.90122808,0.00014489,2]
[424141851,1780609833000,-622.05,0.00014454,2]
[424141850,1780609833000,-150.0,0.00014363,2]
[424141855,1780609833000,-1209.46063008,0.00014489,2]
[424141863,1780609833000,-742.78,0.00014999,2]
[424141858,1780609833000,-17848.97,0.00014735,2]
[424141856,1780609833000,-2056.33892342,0.00014638,2]
[424141859,1780609833000,-166.66,0.00014774,2]
[424141861,1780609833000,-219.27,0.00014997,2]
[424141860,1780609833000,-200.0,0.00014873,2]
[424141852,1780609833000,-166.66,0.00014469,2]
[424141927,1780609834000,-500.0,0.00018573,2]
[424141917,1780609834000,-340.0,0.00017424,2]
[424141930,1780609834000,-742.78,0.00018573,2]
[424141932,1780609834000,-742.78,0.00018573,2]
[424141928,1780609834000,-500.0,0.00018573,2]
[424141929,1780609834000,-742.78,0.00018573,2]
[424141919,1780609834000,-5997.7219,0.00017561,2]
[424141924,1780609834000,-210.351638,0.00018424,2]
[424141923,1780609834000,-2863.2,0.0001841,2]
[424141921,1780609834000,-155.56,0.00018137,2]
[424141933,1780609834000,-742.78,0.00018573,2]
[424141925,1780609834000,-500.0,0.00018573,2]
[424141926,1780609834000,-500.0,0.00018573,2]
[424141944,1780609834000,-400.0,0.000187,6]
[424141934,1780609834000,-742.78,0.00018573,2]
[424141935,1780609834000,-742.78,0.00018573,2]
[424141947,1780609834000,-150.0,0.00018789,2]
[424141945,1780609834000,-150.0,0.00018788,2]
[424141946,1780609834000,-150.0,0.00018789,2]
[424141948,1780609834000,-150.0,0.00018789,2]
[424141938,1780609834000,-742.78,0.00018573,2]
[424141936,1780609834000,-742.78,0.00018573,2]
[424141940,1780609834000,-742.98,0.00018573,2]
[424141939,1780609834000,-742.78,0.00018573,2]
[424141937,1780609834000,-742.78,0.00018573,2]
[424141918,1780609834000,-165.90641432,0.00017424,2]
[424141931,1780609834000,-742.78,0.00018573,2]
[424141914,1780609834000,-340.0,0.00017424,2]
[424141897,1780609834000,-736.0,0.00016512,2]
[424141916,1780609834000,-340.0,0.00017424,2]
[424141942,1780609834000,-200.0,0.000186,6]
[424141898,1780609834000,-168.17,0.00016712,2]
[424141890,1780609834000,-250.0,0.00015976,2]
[424141894,1780609834000,-150.0,0.00016071,2]
[424141896,1780609834000,-260.95,0.00016341,2]
[424141889,1780609834000,-260.95,0.00015961,2]
[424141891,1780609834000,-1848.82521992,0.00015979,2]
[424141893,1780609834000,-300.0,0.00016,2]
[424141892,1780609834000,-166.66,0.00015992,2]
[424141895,1780609834000,-150.0,0.00016071,2]
[424141900,1780609834000,-742.78,0.0001686,2]
[424141910,1780609834000,-340.0,0.00017424,2]
[424141920,1780609834000,-1252.0,0.0001793,2]
[424141899,1780609834000,-260.95,0.00016721,2]
[424141902,1780609834000,-2000.0,0.00017056,2]
[424141905,1780609834000,-340.0,0.00017424,2]
[424141909,1780609834000,-340.0,0.00017424,2]
[424141907,1780609834000,-340.0,0.00017424,2]
[424141903,1780609834000,-3292.0,0.00017155,2]
[424141906,1780609834000,-340.0,0.00017424,2]
[424141908,1780609834000,-340.0,0.00017424,2]
[424141911,1780609834000,-340.0,0.00017424,2]
[424141912,1780609834000,-340.0,0.00017424,2]
[424141913,1780609834000,-340.0,0.00017424,2]
[424141922,1780609834000,-168.410917,0.00018202,2]
[424141915,1780609834000,-340.0,0.00017424,2]
[424141901,1780609834000,-9999.99,0.00016922,2]
[424141943,1780609834000,-355.534158,0.00018697,2]
[424141904,1780609834000,-1848.82521992,0.00017284,2]
[424141949,1780609834000,-150.0,0.00018789,2]
[424141978,1780609834000,-500.0,0.00019077,2]
[424141986,1780609834000,-150.0,0.00019077,2]
[424141984,1780609834000,-500.0,0.00019077,2]
[424141988,1780609834000,-500.0,0.00019077,2]
[424141982,1780609834000,-500.0,0.00019077,2]
[424141983,1780609834000,-500.0,0.00019077,2]
[424142002,1780609834000,-500.0,0.00019077,2]
[424141985,1780609834000,-500.0,0.00019077,2]
[424141987,1780609834000,-500.0,0.00019077,2]
[424141989,1780609834000,-500.0,0.00019077,2]
[424141992,1780609834000,-500.0,0.00019077,2]
[424141994,1780609834000,-392.4655753,0.00019077,2]
[424141976,1780609834000,-500.0,0.00019077,2]
[424141991,1780609834000,-500.0,0.00019077,2]
[424141996,1780609834000,-500.0,0.00019077,2]
[424142000,1780609834000,-500.0,0.00019077,2]
[424141999,1780609834000,-500.0,0.00019077,2]
[424141998,1780609834000,-500.0,0.00019077,2]
[424141997,1780609834000,-500.0,0.00019077,2]
[424141995,1780609834000,-500.0,0.00019077,2]
[424142001,1780609834000,-500.0,0.00019077,2]
[424142003,1780609834000,-500.0,0.00019077,2]
[424142004,1780609834000,-500.0,0.00019077,2]
[424142006,1780609834000,-1897707.88075145,0.00019078,2]
[424142005,1780609834000,-500.0,0.00019077,2]
[424141941,1780609834000,-1848.82521992,0.00018589,2]
[424141993,1780609834000,-500.0,0.00019077,2]
[424141979,1780609834000,-500.0,0.00019077,2]
[424141990,1780609834000,-500.0,0.00019077,2]
[424141981,1780609834000,-500.0,0.00019077,2]
[424141980,1780609834000,-500.0,0.00019077,2]
[424141951,1780609834000,-150.0,0.00018789,2]
[424141952,1780609834000,-150.0,0.00018789,2]
[424141950,1780609834000,-150.0,0.00018789,2]
[424141961,1780609834000,-900.0,0.000189,6]
[424141956,1780609834000,-2831.44892442,0.000189,2]
[424141955,1780609834000,-4609.0,0.00018871,2]
[424141960,1780609834000,-10153.76883633,0.000189,2]
[424141954,1780609834000,-150.0,0.00018856,2]
[424141959,1780609834000,-255.5519539,0.000189,2]
[424141957,1780609834000,-176.66780896,0.000189,2]
[424141958,1780609834000,-1334.15855585,0.000189,2]
[424141963,1780609834000,-2000.0,0.00018951,2]
[424141953,1780609834000,-700.0,0.000188,6]
[424141974,1780609834000,-500.0,0.00019077,2]
[424141977,1780609834000,-500.0,0.00019077,2]
[424141973,1780609834000,-160.03941573,0.00019068,2]
[424141966,1780609834000,-6866.17085841,0.00019,2]
[424141969,1780609834000,-152.61483732,0.00019,2]
[424141968,1780609834000,-217.77762806,0.00019,2]
[424141967,1780609834000,-186.6761124,0.00019,2]
[424141962,1780609834000,-150.0,0.00018924,2]
[424141964,1780609834000,-2500.0,0.00018978,2]
[424141972,1780609834000,-150.0,0.00019058,2]
[424141971,1780609834000,-3462.69020283,0.00019032,2]
[424141970,1780609834000,-10000.0,0.00019026,2]
[424141975,1780609834000,-500.0,0.00019077,2]
[424141965,1780609834000,-150.0,0.00018991,2]
[424142042,1780609838000,-2831.44892442,0.000193,2]
[424142038,1780609838000,-150.0,0.0001926,4]
[424142040,1780609838000,-3968.5907773,0.00019289,2]
[424142036,1780609838000,-3968.5907773,0.0001924,2]
[424142034,1780609838000,-150.0,0.00019193,4]
[424142046,1780609838000,-1334.15855585,0.000193,2]
[424142044,1780609838000,-176.66780896,0.000193,2]
[424142050,1780609838000,-10153.76883633,0.000193,2]
[424142063,1780609838000,-150.0,0.00019395,4]
[424142053,1780609838000,-1865.36488656,0.00019302,2]
[424142055,1780609838000,-3968.5907773,0.00019308,2]
[424142056,1780609838000,-150.0,0.00019328,4]
[424142059,1780609838000,-3968.5907773,0.00019349,2]
[424142074,1780609838000,-150.0,0.00019485,4]
[424142032,1780609838000,-150.0,0.00019137,2]
[424142061,1780609838000,-3968.5907773,0.00019373,2]
[424142048,1780609838000,-255.5519539,0.000193,2]
[424142028,1780609838000,-10153.76883633,0.000191,2]
[424142017,1780609838000,-1798.80895522,0.00018754,2]
[424142030,1780609838000,-150.0,0.00019126,2]
[424142069,1780609838000,-760.0,0.00019452,2]
[424142011,1780609838000,-284.52353461,0.00016562,2]
[424142010,1780609838000,-1500.0,0.00016014,2]
[424142013,1780609838000,-1613.0535,0.0001711,2]
[424142020,1780609838000,-924.50866439,0.00019078,2]
[424142016,1780609838000,-732.12379496,0.00018206,2]
[424142015,1780609838000,-1002.50393428,0.00018206,2]
[424142018,1780609838000,-887.19692672,0.00019078,2]
[424142012,1780609838000,-1270.97646539,0.00016562,2]
[424142014,1780609838000,-1672.7364795,0.00017658,2]
[424142019,1780609838000,-1972.82056932,0.00019078,2]
[424142022,1780609838000,-594703.59308812,0.00019078,2]
[424142023,1780609838000,-2831.44892442,0.000191,2]
[424142021,1780609838000,-3804.0,0.00019078,2]
[424142024,1780609838000,-176.66780896,0.000191,2]
[424142025,1780609838000,-1334.15855585,0.000191,2]
[424142026,1780609838000,-255.5519539,0.000191,2]
[424142027,1780609838000,-496.12,0.000191,2]
[424142071,1780609838000,-150.0,0.00019462,4]
[424142077,1780609838000,-2831.44892442,0.000195,2]
[424142073,1780609838000,-2129.0,0.00019477,2]
[424142110,1780609838000,-2831.44892442,0.000197,2]
[424142126,1780609838000,-150.0,0.00019799,4]
[424142129,1780609838000,-150.0,0.00019833,4]
[424142127,1780609838000,-3968.5907773,0.00019827,2]
[424142124,1780609838000,-150.0,0.00019732,4]
[424142128,1780609838000,-150.0,0.00019833,4]
[424142122,1780609838000,-454.01,0.00019704,2]
[424142130,1780609838000,-1934.38338736,0.0001985,2]
[424142132,1780609838000,-3968.5907773,0.00019868,2]
[424142134,1780609838000,-1000.0,0.0001987,2]
[424142133,1780609838000,-500.0,0.0001987,2]
[424142139,1780609838000,-2831.44892442,0.000199,2]
[424142138,1780609838000,-1848.82521992,0.00019894,2]
[424142136,1780609838000,-516.70112627,0.00019876,2]
[424142135,1780609838000,-3968.5907773,0.00019873,2]
[424142137,1780609838000,-3968.5907773,0.00019881,2]
[424142067,1780609838000,-3968.5907773,0.00019439,2]
[424142116,1780609838000,-255.5519539,0.000197,2]
[424142118,1780609838000,-10153.76883633,0.000197,2]
[424142131,1780609838000,-150.0,0.00019867,4]
[424142114,1780609838000,-1334.15855585,0.000197,2]
[424142120,1780609838000,-3968.5907773,0.00019702,2]
[424142065,1780609838000,-3968.5907773,0.00019409,2]
[424142079,1780609838000,-176.66780896,0.000195,2]
[424142083,1780609838000,-255.5519539,0.000195,2]
[424142085,1780609838000,-10153.76883633,0.000195,2]
[424142098,1780609838000,-516.70112627,0.00019591,2]
[424142095,1780609838000,-3968.5907773,0.00019584,2]
[424142100,1780609838000,-150.0,0.00019597,4]
[424142081,1780609838000,-1334.15855585,0.000195,2]
[424142101,1780609838000,-3968.5907773,0.00019633,2]
[424142104,1780609838000,-3968.5907773,0.00019641,2]
[424142090,1780609838000,-3968.5907773,0.00019548,2]
[424142087,1780609838000,-150.0,0.0001953,4]
[424142093,1780609838000,-1801.58672356,0.0001957,2]
[424142106,1780609838000,-150.0,0.00019665,4]
[424142108,1780609838000,-3968.5907773,0.00019692,2]
[424142092,1780609838000,-800.60606509,0.0001957,2]
[424142112,1780609838000,-176.66780896,0.000197,2]
[424142227,1780609839000,-150.0,0.0002058,2]
[424142218,1780609839000,-150.0,0.00020529,4]
[424142212,1780609839000,-150.0,0.00020473,4]
[424142205,1780609839000,-496.12,0.000204,2]
[424142207,1780609839000,-150.0,0.00020405,4]
[424142192,1780609839000,-10153.76883633,0.000203,2]
[424142188,1780609839000,-3968.5907773,0.00020284,2]
[424142190,1780609839000,-2831.44892442,0.000203,2]
[424142216,1780609839000,-10153.76883633,0.000205,2]
[424142201,1780609839000,-2863.2,0.00020381,2]
[424142203,1780609839000,-2005.9555727,0.00020398,2]
[424142214,1780609839000,-2831.44892442,0.000205,2]
[424142247,1780609839000,-150.0,0.00020877,4]
[424142225,1780609839000,-150.0,0.0002058,2]
[424142229,1780609839000,-150.0,0.00020607,4]
[424142223,1780609839000,-21421.6,0.00020548,2]
[424142238,1780609839000,-6453.0,0.00020758,2]
[424142220,1780609839000,-150.0,0.0002054,4]
[424142231,1780609839000,-150.0,0.00020675,4]
[424142233,1780609839000,-2831.44892442,0.000207,2]
[424142240,1780609839000,-760.0,0.00020821,2]
[424142249,1780609839000,-150.0,0.00020877,4]
[424142254,1780609839000,-160.03941573,0.0002089,2]
[424142197,1780609839000,-516.70112627,0.00020333,2]
[424142210,1780609839000,-3968.5907773,0.00020427,2]
[424142199,1780609839000,-150.0,0.00020338,4]
[424142151,1780609839000,-1149.0,0.0002,2]
[424142184,1780609839000,-3968.5907773,0.00020274,2]
[424142251,1780609839000,-289.88294544,0.00020877,4]
[424142140,1780609839000,-10153.76883633,0.000199,2]
[424142143,1780609839000,-3968.5907773,0.0001993,2]
[424142141,1780609839000,-187.99013607,0.000199,2]
[424142155,1780609839000,-150.0,0.00020001,4]
[424142145,1780609839000,-3968.5907773,0.00019976,2]
[424142148,1780609839000,-182.44233934,0.0002,2]
[424142146,1780609839000,-3968.5907773,0.00019992,2]
[424142144,1780609839000,-150.0,0.00019934,4]
[424142142,1780609839000,-3968.5907773,0.0001993,2]
[424142154,1780609839000,-11152.97,0.0002,2]
[424142149,1780609839000,-1197.057938,0.0002,2]
[424142147,1780609839000,-3968.5907773,0.00019997,2]
[424142158,1780609839000,-3968.5907773,0.00020017,2]
[424142169,1780609839000,-3968.5907773,0.00020105,2]
[424142171,1780609839000,-150.0,0.00020136,4]
[424142160,1780609839000,-2065.86,0.00020053,2]
[424142173,1780609839000,-760.0,0.00020136,2]
[424142165,1780609839000,-2831.44892442,0.000201,2]
[424142167,1780609839000,-10153.76883633,0.000201,2]
[424142175,1780609839000,-150.0,0.00020181,4]
[424142163,1780609839000,-150.0,0.00020069,4]
[424142177,1780609839000,-150.0,0.00020203,4]
[424142179,1780609839000,-3968.5907773,0.00020228,2]
[424142181,1780609839000,-150.0,0.00020271,4]
[424142195,1780609839000,-3968.5907773,0.00020309,2]
[424142235,1780609839000,-10153.76883633,0.000207,2]
[424142186,1780609839000,-3968.5907773,0.00020281,2]
[424142241,1780609839000,-2000.0,0.00020846,2]
[424142309,1780609839000,-151.0,0.00020946,2]
[424142321,1780609839000,-151.0,0.00020946,2]
[424142311,1780609839000,-151.0,0.00020946,2]
[424142325,1780609839000,-151.0,0.00020946,2]
[424142339,1780609839000,-2367.59371696,0.00021,2]
[424142327,1780609839000,-151.0,0.00020946,2]
[424142342,1780609839000,-1006.83748556,0.00021,2]
[424142333,1780609839000,-151.0,0.00020946,2]
[424142336,1780609839000,-15000.0,0.00021,2]
[424142330,1780609839000,-151.0,0.00020946,2]
[424142345,1780609839000,-1197.057938,0.00021,2]
[424142349,1780609839000,-3620.0,0.00021152,2]
[424142350,1780609839000,-1848.82521992,0.00021199,2]
[424142352,1780609839000,-1006.83748556,0.000212,2]
[424142354,1780609839000,-10153.76883633,0.000213,2]
[424142357,1780609839000,-2000.0,0.00021388,7]
[424142361,1780609839000,-2157.14243826,0.00021494,2]
[424142359,1780609839000,-1006.83748556,0.000214,2]
[424142363,1780609839000,-760.0,0.00021506,2]
[424142365,1780609839000,-1340.31,0.000216,2]
[424142373,1780609839000,-150.0,0.00021708,2]
[424142367,1780609839000,-1006.83748556,0.000216,2]
[424142369,1780609839000,-6866.1708584,0.00021629,2]
[424142371,1780609839000,-11152.97,0.00021706,2]
[424142243,1780609839000,-150.00000001,0.00020877,4]
[424142306,1780609839000,-151.0,0.00020946,2]
[424142318,1780609839000,-151.0,0.00020946,2]
[424142347,1780609839000,-10153.76883633,0.000211,2]
[424142323,1780609839000,-151.0,0.00020946,2]
[424142237,1780609839000,-150.0,0.00020742,4]
[424142319,1780609839000,-151.0,0.00020946,2]
[424142245,1780609839000,-150.0,0.00020877,4]
[424142239,1780609839000,-150.0,0.00020809,4]
[424142259,1780609839000,-500.0,0.00020899,2]
[424142256,1780609839000,-539.77027343,0.00020899,2]
[424142261,1780609839000,-500.0,0.00020899,2]
[424142267,1780609839000,-500.0,0.00020899,2]
[424142263,1780609839000,-500.0,0.00020899,2]
[424142265,1780609839000,-500.0,0.00020899,2]
[424142278,1780609839000,-10153.76883633,0.000209,2]
[424142276,1780609839000,-75216.10104736,0.000209,2]
[424142272,1780609839000,-150.0,0.00020899,2]
[424142269,1780609839000,-500.0,0.00020899,2]
[424142274,1780609839000,-1500000.0,0.000209,2]
[424142316,1780609839000,-151.0,0.00020946,2]
[424142313,1780609839000,-2080.17592889,0.00020946,2]
[424142287,1780609839000,-151.0,0.00020946,2]
[424142297,1780609839000,-151.0,0.00020946,2]
[424142284,1780609839000,-151.0,0.00020946,2]
[424142282,1780609839000,-151.0,0.00020946,2]
[424142375,1780609839000,-213.0,0.00021708,2]
[424142292,1780609839000,-151.0,0.00020946,2]
[424142291,1780609839000,-151.0,0.00020946,2]
[424142280,1780609839000,-1200.0,0.000209,7]
[424142289,1780609839000,-151.0,0.00020946,2]
[424142295,1780609839000,-151.0,0.00020946,2]
[424142471,1780609840000,-454.01,0.00024142,2]
[424142467,1780609840000,-3169.04614476,0.00024,2]
[424142473,1780609840000,-28892.26,0.00024174,2]
[424142465,1780609840000,-1197.057938,0.00024,2]
[424142463,1780609840000,-496.12,0.000239,7]
[424142461,1780609840000,-1123.99999999,0.00023812,2]
[424142454,1780609840000,-12663.5,0.0002343,2]
[424142457,1780609840000,-2494.55939288,0.00023686,2]
[424142456,1780609840000,-297.69,0.0002343,2]
[424142450,1780609840000,-11152.97,0.00023411,7]
[424142452,1780609840000,-5711.14,0.0002343,2]
[424142448,1780609840000,-198.77,0.00023381,2]
[424142459,1780609840000,-1848.82521992,0.00023809,2]
[424142481,1780609840000,-2586.85809042,0.00024234,2]
[424142507,1780609840000,-500.0,0.00024899,2]
[424142469,1780609840000,-293.82,0.0002411,2]
[424142479,1780609840000,-3363.76,0.00024174,2]
[424142475,1780609840000,-596.86,0.00024174,2]
[424142483,1780609840000,-6866.1708584,0.00024257,2]
[424142485,1780609840000,-500.0,0.00024269,2]
[424142487,1780609840000,-500.0,0.0002427,2]
[424142489,1780609840000,-1000.0,0.0002427,2]
[424142491,1780609840000,-2863.2,0.00024324,2]
[424142493,1780609840000,-288.67150372,0.00024324,2]
[424142495,1780609840000,-500.0,0.0002447,2]
[424142497,1780609840000,-1000.0,0.0002447,2]
[424142509,1780609840000,-500.0,0.00024997,2]
[424142446,1780609840000,-2405.55389863,0.00023138,2]
[424142477,1780609840000,-18313.66,0.00024174,2]
[424142440,1780609840000,-2799.0,0.0002297,2]
[424142393,1780609840000,-2236.95670847,0.00022042,2]
[424142443,1780609840000,-1197.057938,0.00023,2]
[424142381,1780609840000,-1006.83748556,0.000219,2]
[424142379,1780609840000,-357.24935202,0.00021708,2]
[424142377,1780609840000,-302.46,0.00021708,2]
[424142396,1780609840000,-760.0,0.00022191,2]
[424142398,1780609840000,-2863.2,0.00022353,2]
[424142383,1780609840000,-156.59710035,0.00021918,2]
[424142399,1780609840000,-712.06811606,0.00022407,2]
[424142401,1780609840000,-712.06811605,0.00022407,2]
[424142385,1780609840000,-5000.0,0.00021918,2]
[424142403,1780609840000,-712.06811605,0.00022407,2]
[424142387,1780609840000,-496.12,0.00022,7]
[424142391,1780609840000,-688.92,0.00022,2]
[424142389,1780609840000,-1197.057938,0.00022,2]
[424142406,1780609840000,-158.38,0.00022426,2]
[424142408,1780609840000,-158.38,0.00022426,2]
[424142410,1780609840000,-158.38,0.00022426,2]
[424142413,1780609840000,-158.38,0.00022426,2]
[424142415,1780609840000,-158.38,0.00022426,2]
[424142417,1780609840000,-158.38,0.00022426,2]
[424142421,1780609840000,-2057.98,0.00022466,2]
[424142425,1780609840000,-335.8,0.00022466,2]
[424142427,1780609840000,-1848.82521992,0.00022504,2]
[424142423,1780609840000,-2156.0,0.00022466,2]
[424142429,1780609840000,-2319.72410669,0.0002259,2]
[424142419,1780609840000,-158.38,0.00022426,2]
[424142431,1780609840000,-1124.0,0.00022621,2]
[424142433,1780609840000,-2000.0,0.00022741,2]
[424142435,1780609840000,-1356.0,0.00022784,2]
[424142441,1780609840000,-1309.0,0.00023,2]
[424142438,1780609840000,-9035.0,0.00022834,2]
[424142502,1780609840000,-242.02,0.00024658,2]
[424142499,1780609840000,-1000.0,0.00024658,2]
[424142503,1780609840000,-2682.57183977,0.00024782,2]
[424142590,1780609840000,-6866.1708584,0.00026886,2]
[424142576,1780609840000,-2000.0,0.00026041,7]
[424142574,1780609840000,-1000.0,0.00025898,2]
[424142588,1780609840000,-11152.97,0.00026822,7]
[424142592,1780609840000,-166.66,0.00026902,2]
[424142570,1780609840000,-3363.76,0.00025786,2]
[424142578,1780609840000,-166.66,0.00026042,2]
[424142572,1780609840000,-2884.75459676,0.00025878,2]
[424142593,1780609840000,-215.73365239,0.00027,3]
[424142594,1780609840000,-168.54502257,0.00027,2]
[424142596,1780609840000,-1600.263084,0.00027,60]
[424142599,1780609840000,-186.6761124,0.00027091,2]
[424142597,1780609840000,-1600.263085,0.00027,60]
[424142600,1780609840000,-504.0,0.00027137,2]
[424142598,1780609840000,-99615.0,0.00027,2]
[424142606,1780609840000,-213.38801546,0.000273,30]
[424142608,1780609840000,-382.87,0.000273,14]
[424142604,1780609840000,-150.0,0.00027269,21]
[424142602,1780609840000,-258.15,0.000272,14]
[424142595,1780609840000,-1600.263084,0.00027,60]
[424142610,1780609840000,-500.0,0.00027315,2]
[424142624,1780609840000,-150.0,0.00027397,2]
[424142612,1780609840000,-321.22305785,0.00027397,2]
[424142626,1780609840000,-259.11494659,0.00027397,2]
[424142615,1780609840000,-500.0,0.00027397,2]
[424142617,1780609840000,-500.0,0.00027397,2]
[424142622,1780609840000,-150.0,0.00027397,2]
[424142505,1780609840000,-688.92,0.00024794,7]
[424142618,1780609840000,-352.0,0.00027397,2]
[424142568,1780609840000,-18313.66,0.00025786,2]
[424142584,1780609840000,-10338.00722513,0.00026434,2]
[424142620,1780609840000,-150.0,0.00027397,2]
[424142582,1780609840000,-1848.82521992,0.00026419,2]
[424142586,1780609840000,-500.0,0.0002652,2]
[424142513,1780609840000,-1848.82521992,0.00025114,2]
[424142517,1780609840000,-11152.97,0.00025117,7]
[424142516,1780609840000,-12649.0,0.00025117,2]
[424142526,1780609840000,-500.0,0.0002561,2]
[424142524,1780609840000,-496.12,0.000256,7]
[424142520,1780609840000,-363.64209324,0.00025327,2]
[424142527,1780609840000,-500.0,0.0002561,2]
[424142522,1780609840000,-2781.82699784,0.0002533,2]
[424142532,1780609840000,-500.0,0.0002561,2]
[424142536,1780609840000,-500.0,0.0002561,2]
[424142529,1780609840000,-500.0,0.0002561,2]
[424142540,1780609840000,-500.0,0.0002561,2]
[424142534,1780609840000,-500.0,0.0002561,2]
[424142538,1780609840000,-500.0,0.0002561,2]
[424142511,1780609840000,-614.83612588,0.00025003,2]
[424142553,1780609840000,-1082.52505907,0.00025674,5]
[424142542,1780609840000,-538.0,0.0002561,2]
[424142566,1780609840000,-596.86,0.00025786,2]
[424142562,1780609840000,-500.0,0.00025747,2]
[424142564,1780609840000,-28892.26,0.00025786,2]
[424142551,1780609840000,-1003.78437976,0.00025674,5]
[424142557,1780609840000,-1055.56158219,0.00025674,5]
[424142580,1780609840000,-2863.2,0.00026296,2]
[424142547,1780609840000,-1025.75527717,0.00025674,5]
[424142549,1780609840000,-1102.63591087,0.00025674,5]
[424142559,1780609840000,-1148.94907855,0.00025674,5]
[424142544,1780609840000,-1046.02071927,0.00025674,5]
[424142555,1780609840000,-1139.14214787,0.00025674,5]
[424142560,1780609840000,-1570.8707736,0.00025674,5]
[424142546,1780609840000,-1012.92956831,0.00025674,5]
[424142717,1780609841000,-525.0,0.00028143,2]
[424142711,1780609841000,-500.0,0.00028135,15]
[424142704,1780609841000,-215.73365239,0.00028,10]
[424142702,1780609841000,-200.0,0.00027784,2]
[424142700,1780609841000,-504.0,0.00027782,2]
[424142708,1780609841000,-1707.67,0.00028,7]
[424142707,1780609841000,-215.73365239,0.00028,7]
[424142696,1780609841000,-167.18749433,0.00027774,2]
[424142692,1780609841000,-170.57341299,0.00027774,2]
[424142694,1780609841000,-186.14449273,0.00027774,2]
[424142713,1780609841000,-1447.111,0.00028143,2]
[424142698,1780609841000,-159.62784538,0.00027774,2]
[424142676,1780609841000,-5530.0,0.000277,3]
[424142725,1780609841000,-277.0,0.00028143,2]
[424142721,1780609841000,-1226.0,0.00028143,2]
[424142719,1780609841000,-1273.0,0.00028143,2]
[424142723,1780609841000,-200.0,0.00028143,2]
[424142730,1780609841000,-3641.0,0.00028143,2]
[424142731,1780609841000,-959.27,0.000282,14]
[424142727,1780609841000,-418.0,0.00028143,2]